fUST/lending_fUST_20260126
["ID","MTS","AMOUNT","RATE_DAILY","PERIOD"]
[403557784,1769379032079,-300.0,0.00012024,2]
[403557785,1769379032088,-300.0,0.00012024,2]
[403557786,1769379032097,-300.0,0.00012024,2]
[403557787,1769379032106,-300.0,0.00012024,2]
[403557788,1769379032115,-300.0,0.00012024,2]
[403557789,1769379032125,-300.0,0.00012024,2]
[403557790,1769379032134,-300.0,0.00012024,2]
[403557791,1769379032143,-300.0,0.00012024,2]
[403557792,1769379032152,-300.0,0.00012024,2]
[403557793,1769379032161,-600.0,0.00012024,2]
[403557794,1769379032170,-1126.87457825,0.00012583,7]
[403557795,1769379032179,-5085.75898625,0.000129,2]
[403557796,1769379032188,-396.80993469,0.00012904,2]
[403557797,1769379032197,-420.0,0.00012943,2]
[403557799,1769379032207,-9915.93713817,0.00012944,2]
[403557800,1769379032216,-2773.56790519,0.00012944,2]
[403557802,1769379032225,-500.0,0.00012999,2]
[403557803,1769379032234,-303.0,0.00013014,3]
[403557804,1769379032244,-231.17737082,0.00013014,2]
[403557806,1769379032253,-360.85342727,0.00013014,2]
[403557808,1769379032262,-500.0,0.00013136,2]
[403557809,1769379032271,-151.0,0.00013162,2]
[403557811,1769379032280,-151.0,0.00013162,2]
[403557812,1769379032290,-151.0,0.00013162,2]
[403557813,1769379032299,-151.0,0.00013162,2]
[403557814,1769379032310,-151.0,0.00013162,2]
[403557815,1769379032319,-151.0,0.00013162,2]
[403557816,1769379032328,-151.0,0.00013162,2]
[403557817,1769379032338,-209.40437684,0.00013162,2]
[403557818,1769379032347,-151.0,0.00013162,2]
[403557819,1769379032356,-217.15233878,0.00013162,2]
[403557820,1769379032365,-151.0,0.00013162,2]
[403557821,1769379032374,-225.18697532,0.00013162,2]
[403557822,1769379032383,-151.0,0.00013162,2]
[403557823,1769379032393,-233.51889341,0.00013162,2]
[403557824,1769379032402,-151.0,0.00013162,2]
[403557825,1769379032411,-242.15909246,0.00013162,2]
[403557826,1769379032420,-251.11897888,0.00013162,2]
[403557827,1769379032430,-194.3299807,0.00013162,2]
[403557828,1769379032439,-260.4103811,0.00013162,2]
[403557829,1769379032448,-270.0455652,0.00013162,2]
[403557830,1769379032457,-574.12855637,0.00013162,2]
[403557831,1769379032468,-280.03725112,0.00013162,2]
[403557832,1769379032478,-290.39862941,0.00013162,2]
[403557833,1769379032487,-301.1433787,0.00013162,2]
[403557834,1769379032497,-250.0,0.00013162,2]
[403557835,1769379032507,-250.0,0.00013162,2]
[403557836,1769379032516,-325.83569503,0.00013162,2]
[403557837,1769379032525,-350.01,0.00013173,2]
[403557838,1769379032535,-720.0,0.00013226,2]
[403557839,1769379032544,-5085.75898619,0.00013242,2]
[403557840,1769379032554,-1041.66666667,0.00013265,2]
[403557841,1769379032563,-447.83937243,0.00013272,2]
[403557842,1769379032572,-493.35583044,0.00013272,2]
[403557843,1769379032581,-158.60801817,0.00013272,2]
[403557844,1769379032590,-500.0,0.00013272,2]
[403557845,1769379032600,-500.0,0.00013272,2]
[403557846,1769379032609,-500.0,0.00013273,2]
[403557847,1769379032618,-500.0,0.00013273,2]
[403557848,1769379032628,-500.0,0.00013273,2]
[403557849,1769379032638,-500.0,0.00013273,2]
[403557850,1769379032647,-500.0,0.00013273,2]
[403557851,1769379032657,-500.0,0.00013273,2]
[403557852,1769379032666,-500.0,0.00013273,2]
[403557853,1769379032675,-500.0,0.00013273,2]
[403557854,1769379032684,-500.0,0.00013273,2]
[403557855,1769379032693,-500.0,0.00013273,2]
[403557856,1769379032703,-500.0,0.00013273,2]
[403557857,1769379032712,-500.0,0.00013273,2]
[403557858,1769379032722,-500.0,0.00013273,2]
[403557859,1769379032731,-500.0,0.00013273,2]
[403557860,1769379032740,-500.0,0.00013273,2]
[403557861,1769379032749,-500.0,0.00013273,2]
[403557862,1769379032758,-500.37529675,0.00013273,2]
[403557863,1769379032767,-500.0,0.00013273,2]
[403557864,1769379032777,-500.0,0.00013273,2]
[403557865,1769379032787,-478.61501959,0.00013273,2]
[403557866,1769379032797,-500.0,0.00013273,2]
[403557867,1769379032806,-500.0,0.00013273,2]
[403557868,1769379032815,-500.0,0.00013273,2]
[403557869,1769379032824,-500.0,0.00013273,2]
[403557870,1769379032833,-572.0,0.00013273,2]
[403557871,1769379032842,-343.9617816,0.00013274,2]
[403557872,1769379032852,-244.719,0.00013408,2]
[403557873,1769379032862,-223.0,0.00013467,2]
[403557874,1769379032871,-2149.0,0.00013475,2]
[403557875,1769379032882,-1368.0,0.00013475,2]
[403557876,1769379032895,-778.507,0.00013475,2]
[403557877,1769379032904,-715.0,0.00013475,2]
[403557878,1769379032914,-179.539,0.00013475,2]
[403557879,1769379032923,-418.0,0.00013475,2]
[403557880,1769379032934,-418.0,0.00013475,2]
[403557881,1769379032943,-279.0,0.0001349,2]
[403557882,1769379032952,-2876.18991768,0.00013492,2]
[403557883,1769379032962,-2947.86665295,0.00013553,2]
[403557884,1769379032972,-223.0,0.00013561,2]
[403557885,1769379032981,-223.0,0.00013574,2]
[403557886,1769379032990,-223.0,0.00013601,2]
[403557887,1769379033000,-300.0,0.00013673,2]
[403557888,1769379033010,-223.0,0.00013697,2]
[403557889,1769379033020,-446.44372094,0.00013698,2]
[403557890,1769379033029,-500.0,0.00013698,2]
[403557891,1769379033039,-500.0,0.00013698,2]
[403557892,1769379033049,-500.0,0.00013698,2]
[403557893,1769379033059,-500.0,0.00013698,2]
[403557894,1769379033069,-500.0,0.00013698,2]
[403557895,1769379033078,-500.0,0.00013698,2]
[403557896,1769379033088,-500.0,0.00013698,2]
[403557897,1769379033097,-500.0,0.00013698,2]
[403557898,1769379033107,-500.0,0.00013698,2]
[403557899,1769379033116,-500.0,0.00013698,2]
[403557900,1769379033126,-500.0,0.00013698,2]
[403557901,1769379033136,-500.0,0.00013698,2]
[403557902,1769379033145,-151.0,0.00013698,2]
[403557903,1769379033155,-500.0,0.00013698,2]
[403557904,1769379033164,-477.21722427,0.00013698,2]
[403557905,1769379033174,-361.68684497,0.00013698,2]
[403557906,1769379033183,-500.0,0.00013698,2]
[403557907,1769379033193,-500.0,0.00013698,2]
[403557908,1769379033203,-500.0,0.00013698,2]
[403557909,1769379033213,-500.0,0.00013698,2]
[403557910,1769379033222,-322.02764858,0.00013698,2]
[403557911,1769379033232,-500.0,0.00013698,2]
[403557912,1769379033242,-500.0,0.00013698,2]
[403557913,1769379033252,-500.0,0.00013698,2]
[403557914,1769379033261,-500.0,0.00013698,2]
[403557915,1769379033271,-612.84749342,0.00013698,2]
[403557916,1769379033281,-534.63718151,0.00013698,2]
[403557917,1769379033291,-500.0,0.00013698,2]
[403557918,1769379033301,-487.48549524,0.00013698,2]
[403557919,1769379033311,-500.0,0.00013698,2]
[403557920,1769379033320,-223.65895808,0.00013698,2]
[403557921,1769379033329,-500.0,0.00013698,2]
[403557922,1769379033339,-500.0,0.00013698,2]
[403557923,1769379033348,-500.0,0.00013698,2]
[403557924,1769379033358,-500.0,0.00013698,2]
[403557925,1769379033367,-500.0,0.00013698,2]
[403557926,1769379033376,-500.0,0.00013698,2]
[403557927,1769379033386,-500.0,0.00013698,2]
[403557928,1769379033395,-500.0,0.00013698,2]
[403557929,1769379033404,-500.0,0.00013698,2]
[403557930,1769379033414,-500.0,0.00013698,2]
[403557931,1769379033423,-500.0,0.00013698,2]
[403557932,1769379033433,-500.0,0.00013698,2]
[403557933,1769379033443,-500.0,0.00013698,2]
[403557934,1769379033452,-586.02759152,0.00013698,2]
[403557935,1769379033462,-500.0,0.00013698,2]
[403557936,1769379033471,-500.0,0.00013698,2]
[403557937,1769379033480,-500.0,0.00013698,2]
[403557938,1769379033490,-500.0,0.00013698,2]
[403557939,1769379033500,-500.0,0.00013698,2]
[403557940,1769379033510,-500.0,0.00013698,2]
[403557941,1769379033519,-552.10213248,0.00013698,2]
[403557942,1769379033529,-500.0,0.00013698,2]
[403557943,1769379033538,-210.64191258,0.00013698,2]
[403557944,1769379033548,-500.0,0.00013698,2]
[403557945,1769379033557,-500.0,0.00013698,2]
[403557946,1769379033567,-500.0,0.00013698,2]
[403557947,1769379033576,-177.740619,0.00013698,2]
[403557948,1769379033586,-177.740619,0.00013698,2]
[403557949,1769379033596,-177.740619,0.00013698,2]
[403557950,1769379033605,-177.740619,0.00013698,2]
[403557951,1769379033615,-562.88,0.00013698,2]
[403557952,1769379033626,-500.0,0.00013698,2]
[403557953,1769379033636,-500.0,0.00013698,2]
[403557954,1769379033648,-500.0,0.00013698,2]
[403557955,1769379033658,-500.0,0.00013698,2]
[403557956,1769379033667,-552.56038066,0.00013698,2]
[403557957,1769379033677,-500.0,0.00013698,2]
[403557958,1769379033686,-560.82527297,0.00013698,2]
[403557959,1769379033696,-500.0,0.00013698,2]
[403557960,1769379033705,-500.0,0.00013698,2]
[403557961,1769379033715,-500.0,0.00013698,2]
[403557962,1769379033726,-500.0,0.00013698,2]
[403557963,1769379033735,-500.0,0.00013698,2]
[403557964,1769379033745,-159.71484559,0.00013698,2]
[403557965,1769379033754,-500.0,0.00013698,2]
[403557966,1769379033765,-562.07,0.00013698,2]
[403557967,1769379033774,-500.0,0.00013698,2]
[403557968,1769379033784,-500.0,0.00013698,2]
[403557969,1769379033794,-500.0,0.00013698,2]
[403557970,1769379033803,-500.0,0.00013698,2]
[403557971,1769379033813,-500.0,0.00013698,2]
[403557972,1769379033823,-349.52026366,0.00013698,2]
[403557973,1769379033832,-500.0,0.00013698,2]
[403557974,1769379033842,-177.08697502,0.00013698,2]
[403557975,1769379033851,-500.0,0.00013698,2]
[403557976,1769379033860,-500.0,0.00013698,2]
[403557977,1769379033870,-501.15557506,0.00013698,2]
[403557978,1769379033878,-500.0,0.00013698,2]
[403557979,1769379033888,-403.04717574,0.00013698,2]
[403557980,1769379033902,-4047.88,0.00013698,2]
[403557981,1769379033911,-500.0,0.00013698,2]
[403557982,1769379033920,-500.0,0.00013698,2]
[403557983,1769379033928,-500.0,0.00013698,2]
[403557984,1769379033939,-2571.14,0.00013698,2]
[403557985,1769379033948,-500.0,0.00013698,2]
[403557986,1769379033958,-1114.55,0.00013698,2]
[403557987,1769379033971,-1216.46,0.00013698,2]
[403557988,1769379033981,-193.75434229,0.00013698,2]
[403557989,1769379033990,-500.0,0.00013698,2]
[403557990,1769379034000,-500.0,0.00013698,2]
[403557991,1769379034009,-500.0,0.00013698,2]
[403557992,1769379034018,-500.0,0.00013698,2]
[403557993,1769379034027,-500.0,0.00013698,2]
[403557994,1769379034036,-734.64,0.00013698,2]
[403557995,1769379034045,-735.16,0.00013698,2]
[403557996,1769379034055,-500.0,0.00013698,2]
[403557997,1769379034064,-500.0,0.00013698,2]
[403557998,1769379034073,-500.0,0.00013698,2]
[403557999,1769379034082,-572.29,0.00013698,2]
[403558000,1769379034091,-166.382337,0.00013699,2]
[403558001,1769379034100,-166.382337,0.00013699,2]
[403558002,1769379034109,-166.382337,0.00013699,2]
[403558003,1769379034118,-166.382337,0.00013699,2]
[403558004,1769379034127,-1000.0,0.00013699,2]
[403558005,1769379034136,-151.0,0.00013699,2]
[403558006,1769379034146,-151.0,0.00013699,2]
[403558007,1769379034155,-151.0,0.00013699,2]
[403558008,1769379034164,-151.0,0.00013699,2]
[403558009,1769379034173,-1103.264377,0.00013699,2]
[403558010,1769379034183,-797.0,0.00013699,2]
[403558011,1769379034192,-184.34582962,0.00013699,2]
[403558012,1769379034201,-500.0,0.00013699,2]
[403558013,1769379034210,-447.14757103,0.00013699,2]
[403558014,1769379034219,-500.0,0.00013699,2]
[403558015,1769379034230,-500.0,0.00013699,2]
[403558016,1769379034239,-500.0,0.00013699,2]
[403558017,1769379034248,-500.0,0.00013699,2]
[403558018,1769379034258,-500.0,0.00013699,2]
[403558019,1769379034267,-500.0,0.00013699,2]
[403558020,1769379034276,-196.39292364,0.00013699,2]
[403558021,1769379034285,-500.0,0.00013699,2]
[403558022,1769379034295,-500.0,0.00013699,2]
[403558023,1769379034304,-500.0,0.00013699,2]
[403558024,1769379034313,-500.0,0.00013699,2]
[403558025,1769379034322,-500.0,0.00013699,2]
[403558026,1769379034331,-500.0,0.00013699,2]
[403558027,1769379034340,-500.0,0.00013699,2]
[403558028,1769379034350,-500.0,0.00013699,2]
[403558029,1769379034359,-500.0,0.00013699,2]
[403558030,1769379034368,-500.0,0.00013699,2]
[403558031,1769379034377,-500.0,0.00013699,2]
[403558032,1769379034387,-500.0,0.00013699,2]
[403558033,1769379034396,-500.0,0.00013699,2]
[403558034,1769379034406,-500.0,0.00013699,2]
[403558035,1769379034415,-500.0,0.00013699,2]
[403558036,1769379034425,-500.0,0.00013699,2]
[403558037,1769379034434,-500.0,0.00013699,2]
[403558038,1769379034444,-158.13485911,0.00013699,2]
[403558039,1769379034453,-500.0,0.00013699,2]
[403558040,1769379034463,-500.0,0.00013699,2]
[403558041,1769379034473,-500.0,0.00013699,2]
[403558042,1769379034482,-500.0,0.00013699,2]
[403558043,1769379034492,-500.0,0.00013699,2]
[403558044,1769379034502,-500.0,0.00013699,2]
[403558045,1769379034674,-421.15705795,0.00013699,2]
[403558046,1769379034685,-500.0,0.00013699,2]
[403558047,1769379034694,-500.0,0.00013699,2]
[403558048,1769379034704,-500.0,0.00013699,2]
[403558049,1769379034714,-500.0,0.00013699,2]
[403558050,1769379034724,-500.0,0.00013699,2]
[403558051,1769379034733,-500.0,0.00013699,2]
[403558052,1769379034743,-500.0,0.00013699,2]
[403558053,1769379034752,-500.0,0.00013699,2]
[403558054,1769379034762,-500.0,0.00013699,2]
[403558055,1769379034771,-500.0,0.00013699,2]
[403558056,1769379034781,-343.81100791,0.00013699,2]
[403558057,1769379034790,-500.0,0.00013699,2]
[403558058,1769379034800,-500.0,0.00013699,2]
[403558059,1769379034809,-500.0,0.00013699,2]
[403558060,1769379034819,-500.0,0.00013699,2]
[403558061,1769379034829,-500.0,0.00013699,2]
[403558062,1769379034838,-500.0,0.00013699,2]
[403558063,1769379034848,-500.0,0.00013699,2]
[403558064,1769379034858,-500.0,0.00013699,2]
[403558065,1769379034867,-500.0,0.00013699,2]
[403558066,1769379034876,-500.0,0.00013699,2]
[403558067,1769379034891,-500.0,0.00013699,2]
[403558068,1769379034902,-500.0,0.00013699,2]
[403558069,1769379034912,-500.0,0.00013699,2]
[403558070,1769379034922,-500.0,0.00013699,2]
[403558071,1769379034933,-500.0,0.00013699,2]
[403558072,1769379034943,-500.0,0.00013699,2]
[403558073,1769379034953,-500.0,0.00013699,2]
[403558074,1769379034962,-421.50617003,0.00013699,2]
[403558075,1769379034971,-758.71110606,0.00013699,2]
[403558076,1769379034981,-224.24198865,0.00013699,2]
[403558077,1769379034990,-1233.6268282,0.00013699,2]
[403558078,1769379035000,-2313.5227815,0.00013699,2]
[403558079,1769379035010,-1348.81974411,0.00013699,2]
[403558080,1769379035021,-242.203318,0.00013699,2]
[403558081,1769379035030,-191.79271172,0.00013699,2]
[403558082,1769379035040,-166.382337,0.00013699,2]
[403558083,1769379035050,-166.382337,0.00013699,2]
[403558084,1769379035059,-166.382337,0.00013699,2]
[403558085,1769379035068,-166.382337,0.00013699,2]
[403558086,1769379035079,-824.5975279,0.00013699,2]
[403558087,1769379035088,-2821.8994498,0.00013699,2]
[403558088,1769379035097,-177.740619,0.00013699,2]
[403558089,1769379035107,-177.740619,0.00013699,2]
[403558090,1769379035116,-177.740619,0.00013699,2]
[403558091,1769379035125,-177.740619,0.00013699,2]
[403558092,1769379035135,-177.740619,0.00013699,2]
[403558093,1769379035144,-177.740619,0.00013699,2]
[403558094,1769379035153,-177.740619,0.00013699,2]
[403558095,1769379035162,-177.740619,0.00013699,2]
[403558096,1769379035171,-2107.53085017,0.00013699,2]
[403558097,1769379035180,-500.0,0.00013699,2]
[403558098,1769379035189,-271.41340407,0.00013699,2]
[403558099,1769379035198,-151.0,0.00013699,2]
[403558100,1769379035208,-151.0,0.00013699,2]
[403558101,1769379035217,-377.0,0.000137,2]
[403558102,1769379035227,-670.63470781,0.0001371,2]
[403558103,1769379035237,-800.0,0.00013714,2]
[403558104,1769379035246,-800.0,0.0001372,2]
[403558105,1769379035255,-800.0,0.00013721,2]
[403558106,1769379035265,-500.0,0.00013742,2]
[403558107,1769379035275,-554.09870232,0.00013743,2]
[403558108,1769379035285,-800.0,0.00013764,2]
[403558109,1769379035294,-3000.0,0.000138,30]
[403558110,1769379035304,-3000.0,0.0001381,30]
[403558111,1769379035314,-3000.0,0.0001382,30]
[403558112,1769379035323,-1000.0,0.00013821,2]
[403558113,1769379035333,-1000.0,0.00013821,2]
[403558114,1769379035342,-1000.0,0.00013821,2]
[403558115,1769379035351,-500.0,0.00013821,2]
[403558116,1769379035361,-1000.0,0.00013821,2]
[403558117,1769379035370,-504.2764385,0.00013821,2]
[403558118,1769379035380,-1000.0,0.00013821,2]
[403558119,1769379035389,-500.0,0.00013821,2]
[403558120,1769379035399,-1000.0,0.00013821,2]
[403558121,1769379035409,-166.382337,0.00013821,2]
[403558122,1769379035418,-166.382337,0.00013821,2]
[403558123,1769379035428,-166.382337,0.00013821,2]
[403558124,1769379035437,-166.382337,0.00013821,2]
[403558125,1769379035446,-151.0,0.00013821,2]
[403558126,1769379035456,-223.0,0.00013826,2]
[403558127,1769379035466,-3000.0,0.0001383,30]
[403558128,1769379035475,-177.740619,0.0001383,2]
[403558129,1769379035486,-177.740619,0.0001383,2]
[403558130,1769379035495,-177.740619,0.0001383,2]
[403558131,1769379035505,-177.740619,0.0001383,2]
[403558132,1769379035514,-223.0,0.00013831,2]
[403558133,1769379035523,-3000.0,0.0001384,30]
[403558134,1769379035532,-500.0,0.00013844,2]
[403558135,1769379035541,-2000.0,0.0001385,2]
[403558136,1769379035550,-403.847,0.0001385,2]
[403558137,1769379035560,-3000.0,0.0001385,30]
[403558138,1769379035569,-3000.0,0.0001386,30]
[403558139,1769379035579,-3000.0,0.0001387,30]
[403558140,1769379035588,-800.0,0.00013874,2]
[403558141,1769379035598,-3000.0,0.0001388,30]
[403558142,1769379035607,-223.0,0.00013884,2]
[403558143,1769379035617,-800.0,0.00013888,2]
[403558144,1769379035627,-3000.0,0.0001389,30]
[403558145,1769379035636,-1572.52805658,0.0001389,2]
[403558146,1769379035647,-500.0,0.00013899,2]
[403558147,1769379035656,-474.05960691,0.000139,5]
[403558148,1769379035666,-2520.99439496,0.000139,30]
[403558214,1769379040199,-176.41062468,0.00013162,2]
[403558216,1769379040209,-326.98856555,0.000139,30]
[403558218,1769379040220,-152.01703949,0.000139,30]
[403558220,1769379040229,-151.0,0.000139,2]
[403558222,1769379040238,-166.382337,0.000139,2]
[403558224,1769379040247,-105.35561888,0.000139,2]
[403558229,1769379040285,-61.02671812,0.000139,2]
[403558231,1769379040294,-166.382337,0.000139,2]
[403558233,1769379040303,-39.47154488,0.000139,2]
[403558816,1769379046141,-150.11,0.00011896,2]
[403558818,1769379046151,-168.88,0.00012321,2]
[403558820,1769379046160,-126.91079212,0.000139,2]
[403558822,1769379046169,-151.0,0.000139,2]
[403558824,1769379046179,-500.0,0.00013909,2]
[403558827,1769379046188,-223.0,0.00013909,2]
[403558828,1769379046198,-639.54173987,0.0001391,30]
[403558831,1769379046209,-696.30707609,0.0001391,30]
[403558833,1769379046220,-454.355,0.0001391,30]
[403558835,1769379046231,-1209.79618404,0.0001391,30]
[403558837,1769379046241,-177.740619,0.0001391,2]
[403558839,1769379046250,-177.740619,0.0001391,2]
[403558841,1769379046260,-134.72257796,0.0001391,2]
[403558845,1769379046286,-43.01804104,0.0001391,2]
[403558847,1769379046296,-177.740613,0.0001391,2]
[403558849,1769379046306,-893.0,0.00013914,2]
[403558851,1769379046315,-310.56534596,0.00013917,2]
[403560882,1769379155038,-300.0,0.0001392,30]
[403560883,1769379173122,-300.0,0.0001392,30]
[403560968,1769380231994,-388.78712474,0.00011338,2]
[403560970,1769380232004,-271.11455244,0.00011657,2]
[403560971,1769380232014,-584.0,0.00011657,2]
[403560972,1769380232023,-202.0,0.00012411,3]
[403560973,1769380232033,-180.0,0.00013084,2]
[403560974,1769380232043,-3031.80957982,0.00013085,2]
[403560975,1769380232052,-5950.69207216,0.00013104,2]
[403560976,1769380232061,-2773.56790519,0.00013265,2]
[403560977,1769380232071,-1041.66666667,0.00013265,2]
[403560978,1769380232080,-459.81748108,0.00013273,2]
[403560979,1769380232089,-172.70087908,0.00013273,2]
[403560980,1769380232098,-500.0,0.00013273,2]
[403560981,1769380232107,-5044.580827,0.00013273,2]
[403560982,1769380232117,-500.0,0.00013273,2]
[403560983,1769380232125,-500.0,0.00013273,2]
[403560984,1769380232135,-500.0,0.00013273,2]
[403560985,1769380232144,-500.0,0.00013273,2]
[403560986,1769380232153,-166.0,0.00013507,3]
[403560987,1769380232162,-629.0,0.00013557,2]
[403560988,1769380232172,-2149.0,0.00013557,2]
[403560989,1769380232181,-1368.0,0.00013557,2]
[403560990,1769380232190,-715.0,0.00013557,2]
[403560991,1769380232199,-179.539,0.00013557,2]
[403560992,1769380232208,-418.0,0.00013557,2]
[403560993,1769380232217,-418.0,0.00013557,2]
[403560994,1769380232226,-3814.31923966,0.0001359,2]
[403560995,1769380232235,-319.91517187,0.00013657,2]
[403560996,1769380232245,-300.0,0.00013673,2]
[403560997,1769380232258,-166.0,0.0001368,2]
[403560998,1769380232267,-166.0,0.0001368,2]
[403561000,1769380232276,-166.0,0.0001368,2]
[403561002,1769380232285,-166.0,0.0001368,2]
[403561003,1769380232296,-173.01288411,0.0001368,2]
[403561004,1769380232305,-209.40437684,0.0001369,2]
[403561005,1769380232314,-217.15233878,0.0001369,2]
[403561006,1769380232324,-157.88413828,0.0001369,2]
[403561007,1769380232333,-195.775,0.00013697,2]
[403561008,1769380232342,-500.0,0.00013698,2]
[403561009,1769380232351,-500.0,0.00013698,2]
[403561010,1769380232360,-188.31375737,0.00013698,2]
[403561011,1769380232369,-500.0,0.00013698,2]
[403561012,1769380232378,-500.0,0.00013698,2]
[403561013,1769380232387,-500.0,0.00013698,2]
[403561014,1769380232396,-500.0,0.00013698,2]
[403561015,1769380232404,-500.0,0.00013698,2]
[403561016,1769380232414,-500.0,0.00013698,2]
[403561017,1769380232423,-500.0,0.00013698,2]
[403561018,1769380232431,-500.0,0.00013698,2]
[403561019,1769380232440,-500.0,0.00013698,2]
[403561020,1769380232449,-500.0,0.00013698,2]
[403561021,1769380232458,-500.0,0.00013698,2]
[403561022,1769380232467,-500.0,0.00013698,2]
[403561023,1769380232476,-500.0,0.00013698,2]
[403561024,1769380232485,-500.0,0.00013698,2]
[403561025,1769380232494,-500.0,0.00013698,2]
[403561026,1769380232503,-516.41983203,0.00013698,2]
[403561027,1769380232512,-500.0,0.00013698,2]
[403561028,1769380232522,-500.0,0.00013698,2]
[403561029,1769380232531,-356.05853291,0.00013698,2]
[403561030,1769380232540,-569.77986758,0.00013698,2]
[403561031,1769380232551,-500.0,0.00013698,2]
[403561032,1769380232560,-500.0,0.00013698,2]
[403561033,1769380232571,-500.0,0.00013698,2]
[403561034,1769380232580,-500.0,0.00013698,2]
[403561035,1769380232589,-500.0,0.00013698,2]
[403561036,1769380232598,-500.0,0.00013698,2]
[403561037,1769380232607,-246.98292362,0.00013698,2]
[403561038,1769380232617,-500.0,0.00013698,2]
[403561039,1769380232626,-500.0,0.00013698,2]
[403561040,1769380232636,-516.93558429,0.00013698,2]
[403561041,1769380232645,-500.0,0.00013698,2]
[403561042,1769380232654,-500.0,0.00013698,2]
[403561043,1769380232663,-500.0,0.00013698,2]
[403561044,1769380232672,-500.0,0.00013698,2]
[403561045,1769380232681,-500.0,0.00013698,2]
[403561046,1769380232691,-500.0,0.00013698,2]
[403561047,1769380232700,-500.0,0.00013698,2]
[403561048,1769380232709,-500.0,0.00013698,2]
[403561049,1769380232718,-446.78852166,0.00013698,2]
[403561050,1769380232734,-53.21147834,0.00013698,2]
[403561051,1769380232743,-500.0,0.00013698,2]
[403561052,1769380232753,-373.44493752,0.00013698,2]
[403561053,1769380232763,-500.0,0.00013698,2]
[403561054,1769380232773,-500.0,0.00013698,2]
[403561055,1769380232782,-500.0,0.00013698,2]
[403561056,1769380232791,-500.0,0.00013698,2]
[403561057,1769380232800,-500.0,0.00013698,2]
[403561058,1769380232809,-500.0,0.00013698,2]
[403561059,1769380232818,-500.0,0.00013698,2]
[403561060,1769380232827,-500.0,0.00013698,2]
[403561061,1769380232836,-20.72124265,0.00013698,2]
[403561064,1769380238184,-385.24833432,0.00013698,2]
[403561065,1769380238194,-500.0,0.00013698,2]
[403561066,1769380238203,-201.32578727,0.00013698,2]
[403561067,1769380238215,-298.67421273,0.00013698,2]
[403561068,1769380238224,-500.0,0.00013698,2]
[403561069,1769380238234,-177.72638983,0.00013698,2]
[403561070,1769380238246,-322.27361017,0.00013698,2]
[403561071,1769380238258,-500.0,0.00013698,2]
[403561072,1769380238267,-500.0,0.00013698,2]
[403561073,1769380238278,-500.0,0.00013698,2]
[403561074,1769380238288,-500.0,0.00013698,2]
[403561075,1769380238297,-500.0,0.00013698,2]
[403561076,1769380238307,-500.0,0.00013698,2]
[403561077,1769380238316,-87.45638983,0.00013698,2]
[403561078,1769380238354,-412.54361017,0.00013698,2]
[403561079,1769380238364,-500.0,0.00013698,2]
[403561080,1769380238373,-500.0,0.00013698,2]
[403561081,1769380238383,-500.0,0.00013698,2]
[403561082,1769380238392,-500.0,0.00013698,2]
[403561083,1769380238401,-24.68596324,0.00013698,2]
[403561127,1769380240500,-312.51060466,0.00013698,2]